bitfinex-derivatives/quotes_ETHF0:USTF0_20250911
["timestamp","ask_amount","ask_price","bid_price","bid_amount"]
[1757556548741,0.2091,4373.8,4373.7,0.7213]
[1757556548938,0.299,4374.0,4373.7,0.4178]
[1757556549140,0.299,4374.0,4373.8,0.3035]
[1757556549341,0.2091,4374.0,4373.9,0.7213]
[1757556549635,0.2091,4374.0,4373.6,0.22864]
[1757556549636,0.5081,4374.6,4374.5,0.543]
[1757556549840,0.5081,4374.6,4374.5,0.8465]
[1757556550042,0.705,4374.6,4374.5,0.8465]
[1757556550946,0.705,4374.6,4374.5,0.7213]
[1757556553844,1.31189161,4374.6,4374.5,0.7213]
[1757556555451,1.11499161,4374.6,4374.5,0.8465]
[1757556555844,1.31189161,4374.6,4374.5,0.7213]
[1757556556446,0.60689161,4374.6,4374.5,0.8465]
[1757556556753,0.705,4375.3,4375.2,0.7213]
[1757556556954,1.31159836,4375.3,4375.2,0.7213]
[1757556557151,0.705,4375.3,4375.2,0.7213]
[1757556558847,1.23294298,4376.3,4375.2,0.7213]
[1757556558848,0.299,4376.2,4375.9,0.3035]
[1757556559053,0.5081,4376.0,4375.9,0.7213]
[1757556559254,1.11439513,4376.0,4375.9,0.7213]
[1757556559456,1.31129513,4376.0,4375.9,0.7213]
[1757556561348,1.31095709,4376.0,4375.9,0.7213]
[1757556562748,1.43805709,4376.0,4375.6,0.3035]
[1757556562946,0.2091,4375.2,4375.1,0.2132]
[1757556563145,0.2091,4375.2,4375.1,0.64634999]
[1757556563351,1.18638135,4375.9,4375.1,0.64634999]
[1757556563551,1.18638135,4375.9,4374.8,0.214]
[1757556563552,0.705,4375.7,4375.6,0.5167]
[1757556564055,0.705,4375.7,4375.6,0.7213]
[1757556565153,1.31165529,4375.7,4375.6,0.7213]
[1757556566459,1.31165529,4375.7,4374.6,40.1]
[1757556566759,0.705,4375.2,4375.1,0.7213]
[1757556567655,0.5186,4375.8,4375.7,0.3978]
[1757556567861,1.12595313,4375.8,4375.7,0.3978]
[1757556568053,0.81655313,4375.8,4375.7,0.3978]
[1757556568252,0.81655313,4375.8,4375.7,0.7054]
[1757556570363,0.2092,4375.8,4375.7,0.7054]
[1757556570561,0.60800719,4375.8,4375.7,0.3978]
[1757556570766,0.60800719,4375.8,4375.7,0.7054]
[1757556571059,0.81720719,4375.8,4375.7,0.7054]
[1757556571465,0.60800719,4375.8,4375.7,0.7054]
[1757556571965,0.81720719,4375.8,4375.7,0.7054]
[1757556572966,1.12660719,4375.8,4375.7,0.7054]
[1757556573866,0.60800719,4375.8,4375.7,0.7054]
[1757556574568,0.81720719,4375.8,4375.7,0.7054]
[1757556574870,1.12660719,4375.8,4375.7,0.7054]
[1757556575168,1.33920719,4375.8,4375.7,0.7054]
[1757556575668,0.60800719,4375.8,4375.7,0.7054]
[1757556576763,1.23294298,4376.5,4376.0,0.1258]
[1757556576968,0.5186,4376.9,4376.8,0.7054]
[1757556577156,0.2092,4376.9,4376.8,0.7054]
[1757556577358,0.5186,4377.2,4377.1,0.7054]
[1757556577669,0.2092,4377.2,4377.1,0.7054]
[1757556578065,0.3094,4377.5,4377.1,0.3978]
[1757556578265,1.65474298,4377.6,4377.5,0.5072]
[1757556578467,1.65474298,4377.6,4377.5,0.7054]
[1757556578768,0.7312,4377.6,4377.5,0.7054]
[1757556580468,0.3094,4377.9,4377.5,0.5236]
[1757556580664,0.5186,4378.0,4377.9,0.3076]
[1757556580963,0.7312,4378.0,4377.9,0.7054]
[1757556583473,0.2092,4378.0,4377.9,0.7054]
[1757556584166,0.5186,4378.0,4377.9,0.7054]
[1757556584365,0.4218,4378.0,4377.9,0.7054]
[1757556584669,0.7312,4378.0,4377.9,0.7054]
[1757556585864,0.8551,4378.0,4377.1,0.23]
[1757556586070,0.8551,4378.0,4377.3,0.3076]
[1757556587062,0.4218,4377.1,4377.0,0.1996]
[1757556587265,0.7312,4377.1,4377.0,0.1996]
[1757556587466,0.7312,4377.1,4377.0,0.3978]
[1757556587667,0.7312,4377.1,4377.0,0.8312]
[1757556588372,0.7312,4377.8,4377.7,0.5072]
[1757556588873,1.32725627,4377.8,4377.7,0.5072]
[1757556589073,1.32725627,4377.8,4377.7,0.7054]
[1757556589474,1.01785627,4377.8,4377.7,0.7054]
[1757556589873,1.32725627,4377.8,4377.7,0.7054]
[1757556594076,0.7312,4377.8,4377.7,0.7054]
[1757556599276,0.7312,4377.8,4377.0,0.1258]
[1757556599481,0.7429,4377.2,4376.6,0.3214]
[1757556599682,0.4189,4377.2,4376.6,0.54985]
[1757556599882,0.2149,4376.7,4376.6,0.7447]
[1757556600284,0.324,4377.4,4376.7,0.3214]
[1757556600576,0.7429,4377.4,4377.3,0.5338]
[1757556600986,0.7429,4377.4,4377.3,0.2124]
[1757556601281,0.324,4377.3,4376.6,0.3214]
[1757556601582,0.324,4377.4,4376.7,0.3214]
[1757556602783,0.2149,4376.8,4376.7,0.7447]
[1757556602980,0.324,4377.0,4376.7,0.7447]
[1757556603285,0.324,4377.0,4376.5,1.31218135]
[1757556603286,0.1206,4377.5,4376.9,0.4233]
[1757556603583,0.5389,4377.1,4377.0,0.8639]
[1757556603786,0.2149,4377.1,4377.0,0.8639]
[1757556604481,1.30238135,4378.1,4377.0,0.8639]
[1757556604482,0.7429,4377.9,4377.8,0.7447]
[1757556604681,1.34069646,4377.9,4377.8,0.7447]
[1757556604983,0.7429,4377.9,4377.8,0.7447]
[1757556605277,0.324,4378.2,4378.0,0.1192]
[1757556605484,0.5389,4378.2,4378.1,0.7447]
[1757556606081,0.7429,4378.2,4378.1,0.7447]
[1757556606386,1.34153729,4378.2,4378.1,0.7447]
[1757556607485,1.01753729,4378.2,4378.1,0.7447]
[1757556607685,0.2149,4378.2,4378.1,0.7447]
[1757556608078,0.324,4378.8,4378.2,0.3214]
[1757556608278,1.34159183,4378.7,4378.6,0.5338]
[1757556608979,1.34159183,4378.7,4378.3,0.3214]
[1757556609174,0.4189,4378.4,4378.3,0.4233]
[1757556609485,1.34159183,4378.4,4378.3,0.7447]
[1757556612286,0.7429,4378.4,4378.3,0.7447]
[1757556613086,0.2149,4378.4,4378.3,0.7447]
[1757556613482,0.5389,4378.4,4378.3,0.7447]
[1757556614488,0.2149,4378.4,4378.3,0.7447]
[1757556615086,0.5389,4378.4,4378.3,0.7447]
[1757556615391,0.17,4378.9,4378.8,0.7447]
[1757556615579,0.17,4378.9,4378.8,1.74425323]
[1757556617608,0.17,4378.9,4378.8,1.97262323]
[1757556617885,0.17,4378.9,4378.8,1.74425323]
[1757556621591,0.9129,4378.9,4378.8,0.5338]
[1757556621793,0.324,4379.6,4378.8,1.42285323]
[1757556621995,0.5389,4379.6,4379.5,0.5425]
[1757556622499,0.5389,4379.6,4379.5,1.86345323]
[1757556623200,0.2149,4379.6,4379.5,1.86345323]
[1757556624192,0.324,4380.4,4379.6,0.3214]
[1757556624395,0.2149,4379.9,4379.8,1.74425323]
[1757556625294,0.324,4380.2,4379.8,1.74425323]
[1757556625599,0.324,4380.2,4379.5,0.1192]
[1757556625600,0.7429,4380.2,4380.1,1.74425323]
[1757556625986,0.7429,4380.2,4379.6,0.231]
[1757556626204,0.4189,4379.2,4379.1,0.7447]
[1757556626394,0.324,4379.5,4379.1,0.4233]
[1757556626595,0.5389,4379.5,4379.4,0.7447]
[1757556627501,0.2149,4379.5,4379.4,0.7447]
[1757556627693,0.7352,4379.5,4379.4,0.5338]
[1757556627901,0.7352,4379.5,4379.4,0.3214]
[1757556628099,0.7352,4379.5,4379.4,0.5228]
[1757556628504,0.7352,4379.5,4379.4,0.7235]
[1757556629602,0.7352,4379.5,4379.0,0.3502]
[1757556629603,4.8605,4379.5,4378.6,0.3111]
[1757556629802,0.7345,4378.7,4378.6,0.7132]
[1757556630501,0.7345,4378.7,4378.6,1.71275323]
[1757556630502,0.2142,4378.7,4378.6,1.71275323]
[1757556630692,0.5201,4378.7,4378.6,1.71275323]
[1757556630895,0.7345,4378.7,4378.6,1.71275323]
[1757556631400,0.4286,4378.7,4378.6,1.71275323]
[1757556631799,0.7345,4378.7,4378.6,1.71275323]
[1757556632393,0.3059,4379.1,4378.6,1.71275323]
[1757556632603,0.2142,4379.0,4378.9,0.99955323]
[1757556632794,0.7345,4379.0,4378.9,1.40165323]
[1757556633196,0.7345,4379.0,4378.9,1.71275323]
[1757556634406,0.7345,4379.5,4379.4,0.4021]
[1757556634601,0.2142,4379.5,4379.4,1.71275323]
[1757556634900,0.5492,4380.0,4379.9,0.5125]
[1757556635296,0.4286,4380.0,4379.9,0.7132]
[1757556635498,1.22710082,4381.2,4379.9,0.7132]
[1757556635499,0.3348,4380.5,4380.4,0.2014]
[1757556635696,0.5492,4380.5,4380.4,0.5125]
[1757556636098,0.8551,4380.5,4380.4,0.5125]
[1757556637299,0.7345,4380.5,4380.4,0.7132]
[1757556637800,0.7345,4380.2,4380.1,0.7132]
[1757556638008,0.2142,4380.2,4380.1,0.7132]
[1757556639999,0.5201,4380.2,4380.1,0.7132]
[1757556640311,0.7345,4380.2,4380.1,0.7132]
[1757556641203,0.7345,4380.2,4380.1,0.5125]
[1757556642600,0.7345,4380.2,4379.4,0.4021]
[1757556642601,0.2142,4379.5,4379.4,0.4021]
[1757556642807,0.2142,4379.5,4379.4,0.7132]
[1757556643108,0.3059,4379.7,4379.4,0.7132]
[1757556643508,0.3059,4379.9,4379.5,0.3232]
[1757556643800,0.1253,4380.0,4378.9,0.231]
[1757556643801,0.2142,4379.1,4379.0,1.52345323]
[1757556644204,0.5201,4379.1,4379.0,1.83455323]
[1757556644606,0.7345,4379.1,4379.0,1.83455323]
[1757556644812,0.7345,4379.1,4379.0,0.7132]
[1757556645907,0.7345,4379.1,4379.0,0.5125]
[1757556646207,0.4286,4378.8,4378.7,0.5125]
[1757556646409,0.7345,4378.8,4378.7,0.5125]
[1757556646610,0.4286,4378.4,4378.3,0.5125]
[1757556646812,0.7345,4378.4,4378.3,0.5125]
[1757556647609,0.7345,4378.4,4378.3,0.7132]
[1757556648509,0.7345,4378.4,4378.3,0.2014]
[1757556648715,0.4286,4378.2,4378.1,0.3111]
[1757556648909,0.7345,4378.2,4378.1,1.51205323]
[1757556649616,0.7345,4378.2,4378.1,1.71275323]
[1757556650214,0.7345,4378.2,4378.1,0.7132]
[1757556650414,0.7345,4377.6,4377.5,1.20095323]
[1757556650609,0.7345,4377.6,4377.5,1.51205323]
[1757556651017,0.7345,4377.6,4377.5,1.71275323]
[1757556651614,0.7345,4377.6,4377.5,1.83455323]
[1757556658019,0.203,4377.1,4377.0,0.3331]
[1757556658219,0.7056,4377.1,4377.0,0.4144]
[1757556658612,0.7056,4377.1,4377.0,0.7129]
[1757556661924,0.7056,4376.8,4376.7,0.5098]
[1757556662221,0.7056,4376.8,4376.7,0.7129]
[1757556666524,0.7056,4376.8,4376.1,0.2985]
[1757556666720,0.7056,4376.8,4376.0,0.1218]
[1757556666721,0.4091,4376.5,4376.4,0.5098]
[1757556666916,0.8314,4376.5,4376.4,0.2113]
[1757556667317,0.5349,4376.5,4376.0,1.12135323]
[1757556667517,0.7056,4376.1,4376.0,1.53575323]
[1757556668025,0.7056,4376.1,4376.0,1.83425323]
[1757556671728,0.7056,4376.1,4376.0,0.2113]
[1757556671925,0.7056,4376.1,4376.0,0.7129]
[1757556672427,0.7056,4376.9,4376.8,0.2113]
[1757556672629,0.93407,4376.9,4376.8,0.5098]
[1757556672830,0.7056,4376.9,4376.8,0.5098]
[1757556674022,0.2965,4376.8,4376.1,1.18468725]
[1757556674228,0.203,4376.3,4376.2,0.7129]
[1757556674930,0.4995,4376.3,4376.2,0.7129]
[1757556675134,0.7056,4376.3,4376.2,0.7129]
[1757556676127,0.7056,4376.3,4375.6,0.2985]
[1757556679730,0.7056,4376.3,4375.0,0.1193]
[1757556679731,0.4995,4375.2,4375.1,0.7129]
[1757556679937,0.7056,4375.2,4375.1,0.7129]
[1757556680131,0.2965,4375.9,4375.2,0.2985]
[1757556680332,0.4995,4375.9,4375.8,0.7129]
[1757556680544,0.203,4375.9,4375.8,0.7129]
[1757556681042,0.4995,4375.9,4375.8,0.7129]
[1757556681547,0.203,4375.9,4375.8,0.7129]
[1757556683338,0.4995,4375.9,4375.8,0.7129]
[1757556684141,0.7056,4375.9,4375.8,0.7129]
[1757556685445,0.2965,4376.4,4375.9,0.2985]
[1757556685650,0.9366,4376.6,4376.5,0.7129]
[1757556685840,0.7056,4376.6,4376.0,0.1193]
[1757556686044,0.7056,4376.6,4376.5,0.5098]
[1757556688347,0.203,4376.6,4376.5,0.84]
[1757556688548,1.22710082,4378.3,4377.3,0.7202]
[1757556688849,1.30617262,4377.9,4377.8,0.7202]
[1757556689441,1.30617262,4377.9,4377.8,0.2121]
[1757556691153,1.30617262,4377.9,4377.5,0.2942]
[1757556691452,0.7119,4377.9,4377.1,0.2942]
[1757556694648,0.2147,4376.7,4376.6,0.2942]
[1757556694853,0.2147,4376.7,4376.6,0.7202]
[1757556695251,0.7119,4376.7,4376.6,0.7202]
[1757556695450,0.7119,4376.7,4376.0,0.1193]
[1757556695654,0.2147,4375.7,4375.6,0.7202]
[1757556695853,0.7119,4375.7,4375.6,0.2121]
[1757556696158,0.7119,4375.7,4375.3,0.2942]
[1757556696361,0.3005,4375.3,4375.2,0.2121]
[1757556696653,0.7119,4375.3,4375.2,0.2121]
[1757556696950,0.7119,4375.3,4375.2,0.7202]
[1757556697152,0.4114,4375.3,4375.2,0.7202]
[1757556700360,0.7119,4375.3,4375.2,0.7202]
[1757556701157,0.4114,4375.3,4375.2,0.7202]
[1757556701657,0.3005,4376.0,4375.3,0.2942]
[1757556701857,0.7119,4376.4,4376.3,0.2121]
[1757556702354,0.7119,4376.4,4376.0,0.2942]
[1757556702553,0.7119,4376.4,4375.6,0.2942]
[1757556706364,0.4114,4375.2,4375.1,0.426]
[1757556706557,0.4114,4375.2,4375.1,0.7202]
[1757556706752,0.3005,4375.4,4375.1,0.7202]
[1757556707060,0.5152,4375.4,4375.3,0.7202]
[1757556707452,0.2147,4375.4,4375.3,0.7202]
[1757556708356,0.7119,4375.4,4375.3,0.7202]
[1757556711256,0.7119,4375.4,4375.0,0.4213]
[1757556711456,0.7119,4375.1,4375.0,0.5063]
[1757556713057,0.7119,4375.1,4375.0,0.7202]
[1757556713365,0.4114,4375.1,4375.0,0.8473]
[1757556713962,0.2147,4375.1,4375.0,0.8473]
[1757556716155,0.7119,4375.1,4375.0,0.7202]
[1757556716355,0.7119,4375.1,4375.0,0.2121]
[1757556716858,0.7119,4374.5,4374.4,0.7202]
[1757556717064,0.1234,4375.0,4374.5,0.1187]
[1757556717263,0.5547,4375.0,4374.9,0.4943]
[1757556717764,0.7321,4375.0,4374.9,0.6899]
[1757556720963,0.7321,4375.0,4374.5,0.1187]
[1757556720964,0.5177,4375.5,4375.4,0.6899]
[1757556721563,0.7321,4375.5,4375.4,0.6899]
[1757556724974,0.4313,4375.5,4375.4,0.6899]
[1757556727672,0.4313,4375.5,4375.3,1.18535026]
[1757556727673,0.5177,4375.8,4375.7,0.6899]
[1757556728273,0.3008,4376.4,4376.2,0.2952]
[1757556728473,0.2169,4376.3,4376.2,0.2952]
[1757556728777,0.5177,4376.3,4376.2,0.6899]
[1757556728973,0.2169,4376.3,4376.2,0.6899]
[1757556729165,32.911,4377.3,4376.5,0.8086]
[1757556729371,0.5177,4377.0,4376.9,0.3947]
[1757556729573,0.2169,4377.0,4376.9,0.6899]
[1757556729776,33.1279,4377.3,4377.2,0.6899]
[1757556729971,0.2169,4377.3,4377.2,0.6899]
[1757556730169,0.7321,4377.3,4377.2,0.6899]
[1757556730569,0.4313,4376.7,4376.6,0.2952]
[1757556730874,0.7321,4376.7,4376.1,0.2952]
[1757556731274,0.7321,4376.7,4376.6,0.6899]
[1757556739184,0.1232,4376.5,4375.5,0.1187]
[1757556739376,0.7321,4375.6,4375.5,0.5134]
[1757556739581,0.7321,4375.6,4375.5,0.3947]
[1757556739781,0.7321,4375.6,4375.5,0.6899]
[1757556740485,0.4313,4375.3,4375.2,0.2952]
[1757556740791,0.7321,4375.3,4375.2,1.69022769]
[1757556742192,0.4313,4375.3,4375.2,1.69022769]
[1757556742690,0.1232,4376.0,4375.2,1.69022769]
[1757556742691,0.3008,4376.0,4375.5,0.1187]
[1757556742887,0.7321,4376.0,4375.9,0.6899]
[1757556743992,0.2169,4376.0,4375.9,0.6899]
[1757556744200,0.5177,4376.3,4376.2,0.3947]
[1757556744393,0.7321,4376.3,4376.2,0.6899]
[1757556744989,0.7321,4376.3,4376.2,0.4943]
[1757556745594,0.7321,4376.3,4376.2,0.6899]
[1757556747392,0.7321,4376.3,4375.8,0.3005]
[1757556748195,0.2978,4376.2,4375.7,0.3005]
[1757556748490,0.7128,4376.2,4376.1,0.7215]
[1757556750386,0.2978,4376.5,4376.2,0.3005]
[1757556750597,0.1232,4377.0,4376.0,0.1212]
[1757556750598,0.5382,4377.0,4376.5,0.1212]
[1757556750792,0.5382,4377.0,4376.6,0.3005]
[1757556750986,0.2978,4376.9,4376.5,0.1212]
[1757556751192,0.7128,4376.9,4376.8,0.2054]
[1757556752798,0.7128,4376.9,4376.8,0.7215]
[1757556753305,0.7128,4376.9,4376.8,0.5059]
[1757556756295,0.2978,4376.8,4376.5,0.3005]
[1757556756495,0.7128,4376.6,4376.5,0.7215]
[1757556758506,0.7128,4376.6,4376.5,0.8427]
[1757556768416,0.9438,4376.6,4376.0,0.4217]
[1757556768716,0.7128,4376.1,4376.0,0.7215]
[1757556768920,0.2978,4376.7,4376.0,1.54252769]
[1757556769118,0.5039,4376.7,4376.6,0.7215]
[1757556769320,0.7128,4376.7,4376.1,1.00032769]
[1757556769517,0.415,4376.2,4376.1,0.5059]
[1757556769716,0.7128,4376.2,4376.1,0.5059]
[1757556770311,1.71312769,4376.2,4375.7,0.3005]
[1757556770519,0.2978,4376.1,4375.8,1.00032769]
[1757556770722,0.7128,4376.4,4376.3,0.421]
[1757556771119,0.7349,4376.4,4376.3,0.7215]
[1757556772122,0.9438,4376.4,4376.3,0.7215]
[1757556773810,0.9438,4376.4,4376.3,0.5059]
[1757556776621,0.9438,4376.4,4376.3,0.7215]
[1757556776824,0.231,4376.4,4376.3,0.7215]
[1757556777526,0.231,4376.9,4376.3,0.421]
[1757556777724,0.231,4376.9,4376.1,1.00032769]
[1757556777725,0.6265,4376.9,4376.8,0.2057]
[1757556777925,0.6265,4376.9,4376.8,0.5256]
[1757556778428,0.951,4376.9,4376.8,0.5256]
[1757556779729,0.951,4376.9,4376.8,0.7299]
[1757556780126,0.951,4376.9,4376.8,0.5256]
[1757556780428,0.72,4376.8,4376.7,0.2057]
[1757556780621,0.72,4376.8,4376.7,0.5256]
[1757556780827,0.2,4376.8,4376.7,0.7299]
[1757556781028,0.7555,4377.1,4377.0,0.848]
[1757556781534,0.951,4377.1,4377.0,0.848]
[1757556782029,0.951,4377.1,4377.0,0.7299]
[1757556782230,0.72,4377.1,4377.0,0.7299]
[1757556782536,0.951,4377.1,4377.0,0.7299]
[1757556786533,0.951,4377.1,4377.0,0.5256]
[1757556787123,0.72,4376.6,4376.0,0.1212]
[1757556787329,0.72,4376.2,4376.1,0.95839]
[1757556787828,0.3245,4376.9,4376.2,0.3199]
[1757556788028,0.72,4376.9,4376.8,0.5256]
[1757556788230,0.951,4376.9,4376.8,0.5256]
[1757556788624,0.72,4376.9,4376.8,0.7299]
[1757556788932,0.951,4376.9,4376.8,0.7299]
[1757556789534,0.72,4376.9,4376.8,0.7299]
[1757556789728,0.951,4376.9,4376.8,0.7299]
[1757556790730,0.72,4376.9,4376.8,0.5256]
[1757556790937,0.951,4376.9,4376.8,0.5256]
[1757556791834,0.6265,4376.9,4376.4,0.3199]
[1757556792031,0.8478,4376.5,4376.1,0.3199]
[1757556792433,0.72,4376.5,4376.4,0.7299]
[1757556794237,0.2,4376.5,4376.4,0.7299]
[1757556794434,0.72,4376.8,4376.7,0.7299]
[1757556797740,0.2,4376.8,4376.7,0.7299]
[1757556797940,0.5245,4377.1,4377.0,0.848]
[1757556801739,0.72,4377.1,4377.0,0.848]
[1757556802138,0.72,4377.1,4377.0,0.7299]
[1757556802440,0.72,4377.1,4376.7,0.3199]
[1757556802646,0.72,4376.6,4376.5,0.848]
[1757556804640,0.3955,4376.6,4376.5,0.848]
[1757556808146,0.6893,4376.6,4376.5,0.848]
[1757556808942,0.3955,4376.6,4376.5,0.848]
[1757556809948,0.6893,4376.6,4376.5,0.848]
[1757556812155,0.2,4376.6,4376.5,0.848]
[1757556812454,0.7024,4376.6,4376.5,0.848]
[1757556812654,0.7024,4376.6,4376.5,0.7299]
[1757556813754,0.4084,4376.2,4376.1,0.1971]
[1757556813948,0.4084,4376.2,4376.1,0.4911]
[1757556814257,0.4084,4376.2,4376.1,0.6887]
[1757556814456,0.7022,4376.2,4376.1,0.6887]
[1757556819054,0.7022,4376.2,4375.6,0.294]
[1757556819262,0.1998,4376.2,4376.1,0.6887]
[1757556819457,0.1278,4377.0,4376.1,0.3947]
[1757556819662,0.7022,4376.8,4376.7,0.6887]
[1757556826780,0.1232,4377.5,4377.0,0.8139]
[1757556826781,0.4936,4377.1,4377.0,0.8139]
[1757556827072,0.23,4377.4,4377.3,0.3947]
[1757556827263,0.23,4377.4,4377.3,0.6887]
[1757556827565,0.2938,4377.7,4377.3,0.6887]
[1757556827870,0.7022,4377.9,4377.8,0.3947]
[1757556828070,0.7022,4377.9,4377.8,0.6887]
[1757556834465,0.7022,4377.9,4377.1,0.294]
[1757556834672,0.7022,4377.3,4377.2,0.6887]
[1757556835772,0.1287,4378.0,4377.3,0.294]
[1757556835967,0.7022,4377.8,4377.7,0.4911]
[1757556836162,0.9322,4377.8,4377.7,0.6887]
[1757556838472,0.9322,4377.8,4377.7,0.1971]
[1757556838673,0.9322,4377.8,4377.1,0.2955]
[1757556842880,0.5119,4376.7,4376.6,0.717]
[1757556843082,0.7211,4376.7,4376.6,0.717]
[1757556850891,0.2152,4376.7,4376.6,0.717]
[1757556851091,0.5119,4377.4,4377.3,0.4215]
[1757556851291,0.2152,4377.4,4377.3,0.717]
[1757556851498,0.5119,4377.4,4377.3,0.717]
[1757556851687,0.5267,4377.9,4377.4,0.2955]
[1757556851894,0.9511,4377.9,4377.8,0.5055]
[1757556852094,1.54528269,4377.9,4377.8,0.5055]
[1757556852293,1.54528269,4377.9,4377.2,1.18463124]
[1757556852499,0.4244,4377.4,4377.3,0.717]
[1757556852798,0.7211,4377.4,4377.3,0.717]
[1757556854608,0.7211,4377.4,4377.3,0.5055]
[1757556858504,0.7211,4377.4,4377.3,0.717]
[1757556861213,0.2967,4377.3,4376.6,0.2955]
[1757556861414,0.7211,4377.1,4377.0,1.71708213]
[1757556861713,0.7211,4377.1,4377.0,1.84388213]
[1757556866010,0.2967,4377.4,4377.0,1.84388213]
[1757556866216,0.5119,4377.4,4377.3,0.4215]
[1757556866515,0.7211,4377.4,4377.3,0.717]
[1757556867215,0.7211,4377.4,4377.1,0.32]
[1757556868310,0.3183,4377.3,4376.8,0.32]
[1757556868612,0.7355,4377.3,4377.2,0.2093]
[1757556868910,0.7355,4377.3,4376.7,1.00008213]
[1757556869115,0.2074,4376.7,4376.6,0.734]
[1757556869315,0.7355,4376.7,4376.6,0.734]
[1757556875724,0.2074,4376.7,4376.6,0.734]
[1757556876112,0.5257,4376.7,4376.6,0.734]
[1757556881432,0.7355,4376.7,4376.6,0.734]
[1757556900147,0.7355,4376.7,4376.0,40.2252]
[1757556900348,0.1965,4375.7,4375.6,0.5171]
[1757556900552,0.2977,4375.9,4375.6,0.65451]
[1757556900753,0.2977,4376.9,4376.0,0.1285]
[1757556901054,0.7024,4376.9,4376.8,0.7312]
[1757556904647,0.1965,4376.9,4376.8,0.7312]
[1757556905650,0.23,4377.3,4377.0,0.5545]
[1757556905839,0.9324,4377.3,4377.2,0.7312]
[1757556906554,0.93085,4377.3,4377.2,0.7312]
[1757556906848,0.7024,4377.3,4377.2,0.7312]
[1757556907552,0.9324,4377.7,4377.6,0.5171]
[1757556908351,1.52688001,4377.7,4377.6,0.5171]
[1757556908551,0.2977,4377.6,4377.1,0.3052]
[1757556908756,0.7024,4377.2,4377.1,0.7312]
[1757556911454,0.7024,4377.2,4376.5,0.1285]
[1757556911653,0.7024,4377.2,4376.6,0.3052]
[1757556911844,0.7024,4376.7,4376.6,0.3052]
[1757556912050,0.7024,4376.7,4376.6,0.5171]
[1757556912455,0.7024,4376.7,4376.6,0.7312]
[1757556914961,0.7024,4376.7,4376.0,2.18057362]
[1757556914962,0.2977,4376.6,4376.1,0.3052]
[1757556915257,0.7024,4376.2,4376.1,0.5171]
[1757556916160,0.7024,4376.2,4376.1,0.7312]
[1757556918558,0.7024,4376.8,4376.7,0.2119]
[1757556918759,0.9309,4376.8,4376.7,0.5171]
[1757556919154,0.9309,4376.8,4376.1,0.3052]
[1757556919356,0.7024,4376.8,4376.1,0.3052]
[1757556919660,0.7024,4375.7,4375.6,0.7312]
[1757556920258,0.1965,4375.7,4375.6,0.7312]
[1757556922664,0.4942,4375.7,4375.6,0.7312]
[1757556924160,0.7024,4375.7,4375.6,0.7312]
[1757556924350,0.7024,4375.7,4375.6,0.5171]
[1757556924556,0.7024,4375.7,4375.1,0.3052]
[1757556927052,0.1203,4375.5,4375.1,0.3052]
[1757556927250,0.7103,4375.2,4375.1,0.7126]
[1757556931869,0.1964,4375.2,4375.1,0.7126]
[1757556932068,0.4989,4375.3,4375.2,0.7318]
[1757556934458,0.1964,4375.3,4375.2,0.7318]
[1757556935066,0.4989,4375.3,4375.2,0.7318]
[1757556937367,0.4989,4375.6,4375.5,0.1242]
[1757556937573,0.4989,4375.6,4375.5,0.856]
[1757556937764,0.7103,4375.6,4375.5,0.856]
[1757556937966,0.4989,4375.9,4375.8,0.4074]
[1757556938272,0.23,4376.3,4375.8,0.4074]
[1757556938474,0.4989,4376.0,4375.9,0.7318]
[1757556941372,0.8306,4376.0,4375.6,0.3244]
[1757556941567,0.8306,4376.0,4375.5,0.1242]
[1757556941773,0.8306,4376.0,4375.9,0.5312]
[1757556943570,0.8306,4376.0,4375.6,0.3244]
[1757556944368,0.8306,4376.0,4375.1,0.3244]
[1757556944572,0.5281,4376.0,4375.1,0.22854999]
[1757556944868,0.3025,4375.9,4375.2,0.3244]
[1757556945072,0.1964,4375.3,4375.2,0.7318]
[1757556945268,0.7103,4375.9,4375.8,0.2068]
[1757556945470,0.7103,4375.9,4375.8,0.7318]
[1757556945870,0.7103,4375.9,4375.5,0.3244]
[1757556946071,0.7103,4375.9,4375.8,0.2068]
[1757556946272,0.7103,4375.9,4375.8,0.7318]
[1757556946766,0.1964,4375.9,4375.8,0.7318]
[1757556947472,0.4989,4375.9,4375.8,0.7318]
[1757556948078,0.7103,4375.9,4375.8,0.7318]
[1757556948283,0.7103,4375.9,4375.6,0.3244]
[1757556948474,0.7103,4375.9,4375.1,0.3244]
[1757556950879,0.7103,4375.9,4375.8,0.2068]
[1757556951076,0.4989,4375.9,4375.8,0.7318]
[1757556951379,0.1964,4375.9,4375.8,0.7318]
[1757556952083,0.7103,4376.6,4376.5,0.4074]
[1757556952384,0.7103,4376.6,4376.5,0.856]
[1757556952772,0.7103,4376.6,4376.5,0.7318]
[1757556956583,0.4078,4376.6,4376.5,0.856]
[1757556956793,0.1964,4376.6,4376.5,0.856]
[1757556957491,33.3522,4376.7,4376.6,0.7313]
[1757556957985,33.6484,4376.7,4376.6,0.7313]
[1757556958485,0.9465,4376.7,4376.6,0.7313]
[1757556959485,0.7165,4376.7,4376.6,0.7313]
[1757556959788,0.9465,4376.7,4376.6,0.7313]
[1757556962075,0.7165,4376.7,4376.6,0.7313]
[1757556962279,0.2962,4377.0,4376.6,0.7313]
[1757556962479,0.23,4376.9,4376.7,0.3241]